fUSD/lending_fUSD_20240625
["ID","MTS","AMOUNT","RATE_DAILY","PERIOD"]
[330365833,1719335464426,-766.63,0.00019178,2]
[330365834,1719335464435,-500.0,0.00019178,2]
[330365835,1719335464449,-500.0,0.00019178,2]
[330365836,1719335464459,-500.0,0.00019178,2]
[330365837,1719335464468,-889.67,0.00019178,2]
[330365838,1719335464477,-3981.45,0.00019178,2]
[330365839,1719335464489,-2647.85,0.00019178,2]
[330365840,1719335464498,-500.0,0.00019178,2]
[330365841,1719335464507,-500.0,0.00019178,2]
[330365842,1719335464516,-800.38,0.00019178,2]
[330365843,1719335464525,-800.44,0.00019178,2]
[330365844,1719335464535,-2493.43,0.00019178,2]
[330365845,1719335464545,-523.92,0.00019178,2]
[330365846,1719335464555,-1070.59,0.00019178,2]
[330365847,1719335464566,-500.0,0.00019178,2]
[330365848,1719335464577,-500.0,0.00019178,2]
[330365849,1719335464587,-7010.64,0.00019178,2]
[330365850,1719335464597,-2368.78,0.00019178,2]
[330365851,1719335464607,-1000.0,0.00019178,2]
[330365852,1719335464617,-1000.0,0.00019178,2]
[330365853,1719335464625,-1000.0,0.00019178,2]
[330365854,1719335464635,-1000.0,0.00019178,2]
[330365855,1719335464644,-250.0,0.00019178,2]
[330365856,1719335464653,-95.78383428,0.0001926,2]
[330365857,1719335464665,-4427.52640751,0.0001926,2]
[330365858,1719335464675,-3961.86153637,0.00019302,2]
[330365859,1719335464686,-960.9692143,0.00019302,2]
[330365860,1719335464700,-2401.02711241,0.00019302,2]
[330365861,1719335464715,-504.06622962,0.00019302,2]
[330365862,1719335464727,-3877.46310139,0.00019302,2]
[330365863,1719335464738,-1032.32916527,0.00019302,2]
[330365864,1719335464747,-347.97406254,0.00019397,2]
[330365865,1719335464758,-252.02593746,0.00019397,2]
[330365866,1719335464767,-151.0,0.00019416,2]
[330365867,1719335464776,-50.43624475,0.00019442,2]
[330365868,1719335464787,-691.03903521,0.00019442,2]
[330365869,1719335464798,-600.62583817,0.00019442,2]
[330365870,1719335464810,-3181.20912366,0.00019442,2]
[330365871,1719335464819,-1926.17,0.0001945,2]
[330365872,1719335464828,-560.94,0.00019451,2]
[330365873,1719335464837,-12.74889101,0.00019451,2]
[330365874,1719335464848,-548.19110899,0.00019451,2]
[330365875,1719335464859,-560.94,0.00019451,2]
[330365876,1719335464868,-560.94,0.00019451,2]
[330365877,1719335464878,-560.94,0.00019451,2]
[330365878,1719335464888,-560.94,0.00019451,2]
[330365879,1719335464898,-561.03236704,0.00019451,2]
[330365880,1719335464908,-742.75,0.00019451,2]
[330365881,1719335464918,-742.75,0.00019451,2]
[330365882,1719335464928,-742.75,0.00019451,2]
[330365883,1719335464937,-742.75,0.00019451,2]
[330365884,1719335464949,-742.75,0.00019451,2]
[330365885,1719335464959,-742.75,0.00019451,2]
[330365886,1719335464968,-742.75,0.00019451,2]
[330365887,1719335464977,-742.75,0.00019451,2]
[330365888,1719335464986,-742.75,0.00019451,2]
[330365889,1719335464995,-742.75,0.00019451,2]
[330365890,1719335465004,-742.76897105,0.00019451,2]
[330365891,1719335465014,-2242.69,0.00019451,2]
[330365892,1719335465024,-2242.69,0.00019451,2]
[330365893,1719335465036,-2242.69,0.00019451,2]
[330365894,1719335465045,-2242.69,0.00019451,2]
[330365895,1719335465054,-2242.69,0.00019451,2]
[330365896,1719335465063,-2242.69,0.00019451,2]
[330365897,1719335465072,-732.7844917,0.00019451,2]
[330365898,1719335465099,-1509.9055083,0.00019451,2]
[330365899,1719335465107,-200.84449245,0.00019451,2]
[330365900,1719335465119,-258.31960914,0.00019451,2]
[330365901,1719335465130,-1783.52589841,0.00019451,2]
[330365902,1719335465139,-2242.69,0.00019451,2]
[330365903,1719335465148,-2242.69,0.00019451,2]
[330365904,1719335465158,-2242.73079872,0.00019451,2]
[330365905,1719335465167,-500.0,0.00019451,2]
[330365906,1719335465176,-500.0,0.00019451,2]
[330365907,1719335465186,-500.0,0.00019451,2]
[330365908,1719335465195,-500.0,0.00019451,2]
[330365909,1719335465204,-500.0,0.00019451,2]
[330365910,1719335465214,-500.0,0.00019451,2]
[330365911,1719335465223,-500.0,0.00019451,2]
[330365912,1719335465232,-500.0,0.00019451,2]
[330365913,1719335465241,-500.0,0.00019451,2]
[330365914,1719335465250,-500.0,0.00019451,2]
[330365915,1719335465259,-437.89475536,0.00019451,2]
[330365916,1719335465269,-1926.17,0.00019451,2]
[330365917,1719335465277,-1926.17,0.00019451,2]
[330365918,1719335465287,-1926.17,0.00019451,2]
[330365919,1719335465296,-1926.17,0.00019451,2]
[330365920,1719335465306,-1926.17,0.00019451,2]
[330365921,1719335465318,-1926.17,0.00019451,2]
[330365922,1719335465328,-1926.17,0.00019451,2]
[330365923,1719335465337,-1926.22751634,0.00019451,2]
[330365924,1719335465347,-1036.09,0.00019451,2]
[330365925,1719335465356,-1036.09,0.00019451,2]
[330365926,1719335465365,-1036.09,0.00019451,2]
[330365927,1719335465375,-1036.09,0.00019451,2]
[330365928,1719335465386,-1036.09,0.00019451,2]
[330365929,1719335465395,-1036.09,0.00019451,2]
[330365930,1719335465404,-1036.09,0.00019451,2]
[330365931,1719335465414,-1036.09,0.00019451,2]
[330365932,1719335465423,-1036.09,0.00019451,2]
[330365933,1719335465432,-1036.09,0.00019451,2]
[330365934,1719335465445,-1036.09,0.00019451,2]
[330365935,1719335465455,-1036.09,0.00019451,2]
[330365936,1719335465464,-1036.09,0.00019451,2]
[330365937,1719335465473,-1036.09,0.00019451,2]
[330365938,1719335465482,-1036.09,0.00019451,2]
[330365939,1719335465492,-1036.21913748,0.00019451,2]
[330365940,1719335465502,-1667.24,0.00019451,2]
[330365941,1719335465511,-1667.24,0.00019451,2]
[330365942,1719335465520,-1667.24,0.00019451,2]
[330365943,1719335465530,-1667.24,0.00019451,2]
[330365944,1719335465540,-1667.24,0.00019451,2]
[330365945,1719335465549,-1667.24,0.00019451,2]
[330365946,1719335465559,-1667.24,0.00019451,2]
[330365947,1719335465568,-1667.24,0.00019451,2]
[330365948,1719335465578,-1667.24,0.00019451,2]
[330365949,1719335465587,-1667.24,0.00019451,2]
[330365950,1719335465596,-1667.24,0.00019451,2]
[330365951,1719335465606,-1667.24,0.00019451,2]
[330365952,1719335465615,-1667.3816323,0.00019451,2]
[330365953,1719335465624,-95292.85973233,0.00019452,7]
[330365954,1719335465636,-1951.92190028,0.00019452,7]
[330365955,1719335465647,-543.11739695,0.00019452,7]
[330365956,1719335465663,-534.16021158,0.00019452,7]
[330365957,1719335465675,-465.19651332,0.00019452,7]
[330365958,1719335465690,-1284.1755862,0.00019452,7]
[330365959,1719335465703,-1753.85498398,0.00019452,7]
[330365960,1719335465714,-1788.83831452,0.00019452,7]
[330365961,1719335465725,-404.48230813,0.00019452,7]
[330365962,1719335465736,-544.91435594,0.00019452,7]
[330365963,1719335465983,-16026.68917251,0.00019452,7]
[330365964,1719335465995,-581.71067117,0.00019452,7]
[330365965,1719335466006,-934.31675155,0.00019452,7]
[330365966,1719335572525,257.13,0.00018849,30]
[330365972,1719335997994,1002.75147208,0.00025,60]
[330365977,1719336126902,235.7,0.00018849,30]
[330365983,1719336194757,953.72749396,0.00026,120]
[330366014,1719336632391,-502.36,0.00015668,2]
[330366015,1719336632405,-150.59,0.00016229,2]
[330366016,1719336632414,-152.92,0.00016234,2]
[330366017,1719336632423,-44.53212826,0.00016237,2]
[330366022,1719336632694,-107.77787174,0.00016237,2]
[330366024,1719336632703,-150.4,0.0001624,2]
[330366025,1719336632717,-153.29,0.00016245,2]
[330366028,1719336632727,-150.06,0.00016247,2]
[330366030,1719336632736,-67.54364653,0.00016252,2]
[330366032,1719336632748,-86.43635347,0.00016252,2]
[330366034,1719336632757,-176.39,0.00017531,2]
[330366035,1719336632767,-684.3304205,0.00017533,2]
[330366036,1719336632777,-250.0,0.00017533,2]
[330366037,1719336632786,-327.84322573,0.00017602,3]
[330366038,1719336632800,-1672.15677427,0.00017602,3]
[330366039,1719336632811,-1000.0,0.00017684,2]
[330366040,1719336632820,-84.95987485,0.00017821,2]
[330366041,1719336632832,-98.36012515,0.00017821,2]
[330366042,1719336632842,-502.36,0.00017932,2]
[330366043,1719336632851,-153.38,0.00018304,2]
[330366044,1719336632861,-151.64,0.00018306,2]
[330366045,1719336632871,-250.0,0.00018311,2]
[330366046,1719336632880,-981.86,0.00018521,2]
[330366047,1719336632890,-257.52,0.00018521,2]
[330366048,1719336632905,-151.46,0.0001854,2]
[330366049,1719336632915,-153.06,0.00018545,2]
[330366050,1719336632924,-153.96,0.00018572,2]
[330366051,1719336632934,-153.26,0.00018576,2]
[330366052,1719336632943,-150.63,0.00018578,2]
[330366053,1719336632952,-87.0642944,0.00018583,2]
[330366054,1719336632964,-83.0057056,0.00018583,2]
[330366055,1719336632974,-171.68021492,0.00018629,2]
[330366056,1719336632986,-638.73740156,0.00018629,2]
[330366057,1719336632996,-557.08125471,0.00018629,2]
[330366058,1719336633007,-68.11874529,0.00018629,2]
[330366059,1719336633016,-527.79,0.0001863,2]
[330366060,1719336633026,-372.15,0.0001863,2]
[330366061,1719336633035,-155.0,0.00019076,2]
[330366062,1719336633045,-221.72694267,0.00019077,2]
[330366063,1719336633056,-647.77,0.00019077,2]
[330366064,1719336633102,-4511.22460977,0.00019077,2]
[330366065,1719336633111,-904.13973096,0.00019078,2]
[330366066,1719336633121,-3166.31716928,0.00019078,2]
[330366067,1719336633131,-288.27596742,0.00019078,2]
[330366068,1719336633140,-440.2269,0.00019078,2]
[330366069,1719336633151,-155.0,0.00019091,2]
[330366070,1719336633160,-155.0,0.00019091,2]
[330366071,1719336633169,-388.42635038,0.00019091,2]
[330366072,1719336633179,-1000.0,0.00019092,2]
[330366073,1719336633188,-527.79,0.000191,2]
[330366074,1719336633198,-859.84,0.000191,2]
[330366075,1719336633208,-300.0,0.000191,2]
[330366076,1719336633219,-354.29,0.000191,2]
[330366077,1719336633229,-150.0,0.000191,2]
[330366078,1719336633239,-206.03175266,0.00019159,2]
[330366079,1719336633248,-1000.0,0.0001916,2]
[330366080,1719336633258,-1000.0,0.00019177,2]
[330366081,1719336633268,-500.0,0.00019178,2]
[330366082,1719336633278,-530.90568808,0.00019178,2]
[330366083,1719336633287,-500.0,0.00019178,2]
[330366084,1719336633297,-500.0,0.00019178,2]
[330366085,1719336633307,-500.0,0.00019178,2]
[330366086,1719336633316,-500.0,0.00019178,2]
[330366087,1719336633325,-500.0,0.00019178,2]
[330366088,1719336633334,-500.0,0.00019178,2]
[330366089,1719336633343,-500.0,0.00019178,2]
[330366090,1719336633352,-500.0,0.00019178,2]
[330366091,1719336633362,-500.0,0.00019178,2]
[330366092,1719336633372,-568.86652486,0.00019178,2]
[330366093,1719336633381,-592.93668536,0.00019178,2]
[330366094,1719336633605,-500.0,0.00019178,2]
[330366095,1719336633616,-500.0,0.00019178,2]
[330366096,1719336633626,-500.0,0.00019178,2]
[330366097,1719336633636,-500.0,0.00019178,2]
[330366098,1719336633649,-439.84533825,0.00019178,2]
[330366099,1719336633660,-500.0,0.00019178,2]
[330366100,1719336633670,-500.0,0.00019178,2]
[330366101,1719336633680,-500.0,0.00019178,2]
[330366102,1719336633689,-500.0,0.00019178,2]
[330366103,1719336633703,-500.0,0.00019178,2]
[330366104,1719336633713,-500.0,0.00019178,2]
[330366105,1719336633723,-500.60118308,0.00019178,2]
[330366106,1719336633732,-500.0,0.00019178,2]
[330366107,1719336633743,-500.0,0.00019178,2]
[330366108,1719336633752,-500.0,0.00019178,2]
[330366109,1719336633763,-500.0,0.00019178,2]
[330366110,1719336633772,-500.0,0.00019178,2]
[330366111,1719336633783,-2076.75,0.00019178,2]
[330366112,1719336633793,-500.0,0.00019178,2]
[330366113,1719336633803,-500.0,0.00019178,2]
[330366114,1719336633813,-500.0,0.00019178,2]
[330366115,1719336633823,-500.0,0.00019178,2]
[330366116,1719336633833,-500.0,0.00019178,2]
[330366117,1719336633843,-789.79,0.00019178,2]
[330366118,1719336633853,-500.0,0.00019178,2]
[330366119,1719336633863,-500.0,0.00019178,2]
[330366120,1719336633873,-500.0,0.00019178,2]
[330366121,1719336633883,-1673.46,0.00019178,2]
[330366122,1719336633894,-500.0,0.00019178,2]
[330366123,1719336633907,-2619.6,0.00019178,2]
[330366124,1719336633916,-535.79,0.00019178,2]
[330366125,1719336633926,-500.0,0.00019178,2]
[330366126,1719336633935,-500.0,0.00019178,2]
[330366127,1719336633946,-500.0,0.00019178,2]
[330366128,1719336633956,-500.0,0.00019178,2]
[330366129,1719336633966,-500.0,0.00019178,2]
[330366130,1719336633976,-861.76,0.00019178,2]
[330366131,1719336633986,-500.0,0.00019178,2]
[330366132,1719336633996,-999.92,0.00019178,2]
[330366133,1719336634006,-500.0,0.00019178,2]
[330366134,1719336634016,-593.89,0.00019178,2]
[330366135,1719336634026,-500.0,0.00019178,2]
[330366136,1719336634036,-500.0,0.00019178,2]
[330366137,1719336634046,-2210.79,0.00019178,2]
[330366138,1719336634056,-500.0,0.00019178,2]
[330366139,1719336634066,-854.59,0.00019178,2]
[330366140,1719336634075,-500.0,0.00019178,2]
[330366141,1719336634085,-500.0,0.00019178,2]
[330366142,1719336634095,-1151.67,0.00019178,2]
[330366143,1719336634105,-500.0,0.00019178,2]
[330366144,1719336634116,-500.0,0.00019178,2]
[330366145,1719336634126,-500.0,0.00019178,2]
[330366146,1719336634136,-500.0,0.00019178,2]
[330366147,1719336634146,-500.0,0.00019178,2]
[330366148,1719336634156,-500.0,0.00019178,2]
[330366149,1719336634167,-926.32,0.00019178,2]
[330366150,1719336634178,-1236.52,0.00019178,2]
[330366151,1719336634188,-500.0,0.00019178,2]
[330366152,1719336634199,-500.0,0.00019178,2]
[330366153,1719336634209,-1303.42,0.00019178,2]
[330366154,1719336634220,-1751.38,0.00019178,2]
[330366155,1719336634230,-500.0,0.00019178,2]
[330366156,1719336634240,-547.11,0.00019178,2]
[330366157,1719336634251,-500.0,0.00019178,2]
[330366158,1719336634261,-1123.61,0.00019178,2]
[330366159,1719336634271,-500.0,0.00019178,2]
[330366160,1719336634282,-500.0,0.00019178,2]
[330366161,1719336634292,-500.0,0.00019178,2]
[330366162,1719336634303,-500.0,0.00019178,2]
[330366163,1719336634313,-500.0,0.00019178,2]
[330366164,1719336634323,-1226.47,0.00019178,2]
[330366165,1719336634333,-512.0,0.00019178,2]
[330366166,1719336634343,-500.0,0.00019178,2]
[330366167,1719336634355,-500.0,0.00019178,2]
[330366168,1719336634365,-500.0,0.00019178,2]
[330366169,1719336634376,-787.81,0.00019178,2]
[330366170,1719336634387,-500.0,0.00019178,2]
[330366171,1719336634399,-500.0,0.00019178,2]
[330366172,1719336634409,-1011.46,0.00019178,2]
[330366173,1719336634420,-500.0,0.00019178,2]
[330366174,1719336634433,-500.0,0.00019178,2]
[330366175,1719336634443,-500.0,0.00019178,2]
[330366176,1719336634454,-500.0,0.00019178,2]
[330366177,1719336634464,-1223.04,0.00019178,2]
[330366178,1719336634474,-500.0,0.00019178,2]
[330366179,1719336634484,-500.0,0.00019178,2]
[330366180,1719336634494,-500.0,0.00019178,2]
[330366181,1719336634504,-500.0,0.00019178,2]
[330366182,1719336634514,-500.0,0.00019178,2]
[330366183,1719336634524,-500.0,0.00019178,2]
[330366184,1719336634533,-898.24,0.00019178,2]
[330366185,1719336634543,-1876.96,0.00019178,2]
[330366186,1719336634552,-500.0,0.00019178,2]
[330366187,1719336634562,-500.0,0.00019178,2]
[330366188,1719336634572,-500.0,0.00019178,2]
[330366189,1719336634581,-500.0,0.00019178,2]
[330366190,1719336634590,-500.0,0.00019178,2]
[330366191,1719336634600,-500.0,0.00019178,2]
[330366192,1719336634609,-500.0,0.00019178,2]
[330366193,1719336634619,-500.0,0.00019178,2]
[330366194,1719336634629,-500.0,0.00019178,2]
[330366195,1719336634638,-500.0,0.00019178,2]
[330366196,1719336634651,-861.26,0.00019178,2]
[330366197,1719336634661,-1148.07,0.00019178,2]
[330366198,1719336634670,-1010.31,0.00019178,2]
[330366199,1719336634680,-500.0,0.00019178,2]
[330366200,1719336634689,-500.0,0.00019178,2]
[330366201,1719336634700,-220.78694777,0.00019178,2]
[330366202,1719336634713,-1481.53,0.00019178,2]
[330366203,1719336634723,-500.0,0.00019178,2]
[330366204,1719336634732,-500.0,0.00019178,2]
[330366205,1719336634745,-500.0,0.00019178,2]
[330366206,1719336634755,-500.0,0.00019178,2]
[330366207,1719336634764,-999.5,0.00019178,2]
[330366208,1719336634774,-500.0,0.00019178,2]
[330366209,1719336634786,-500.0,0.00019178,2]
[330366210,1719336634797,-1478.64,0.00019178,2]
[330366211,1719336634807,-529.23584043,0.00019178,2]
[330366212,1719336634817,-500.0,0.00019178,2]
[330366213,1719336634827,-500.0,0.00019178,2]
[330366214,1719336634836,-1000.0,0.00019178,2]
[330366215,1719336634847,-500.0,0.00019178,2]
[330366216,1719336634857,-500.0,0.00019178,2]
[330366217,1719336634868,-500.0,0.00019178,2]
[330366218,1719336634878,-500.0,0.00019178,2]
[330366219,1719336634888,-5000.0,0.00019178,2]
[330366220,1719336634902,-504.83370419,0.00019178,2]
[330366221,1719336634912,-500.0,0.00019178,2]
[330366222,1719336634922,-500.0,0.00019178,2]
[330366223,1719336634932,-1455.6,0.00019178,2]
[330366224,1719336634943,-1169.49,0.00019178,2]
[330366225,1719336634953,-596.69364679,0.00019178,2]
[330366226,1719336634963,-500.0,0.00019178,2]
[330366227,1719336634974,-500.0,0.00019178,2]
[330366228,1719336634984,-500.0,0.00019178,2]
[330366229,1719336634994,-500.0,0.00019178,2]
[330366230,1719336635004,-1034.76,0.00019178,2]
[330366231,1719336635013,-500.0,0.00019178,2]
[330366232,1719336635023,-671.78,0.00019178,2]
[330366233,1719336635035,-500.0,0.00019178,2]
[330366234,1719336635045,-500.0,0.00019178,2]
[330366235,1719336635056,-500.0,0.00019178,2]
[330366236,1719336635066,-613.17,0.00019178,2]
[330366237,1719336635076,-823.07,0.00019178,2]
[330366238,1719336635086,-500.0,0.00019178,2]
[330366239,1719336635096,-500.0,0.00019178,2]
[330366240,1719336635107,-500.0,0.00019178,2]
[330366241,1719336635117,-500.0,0.00019178,2]
[330366242,1719336635128,-749.16,0.00019178,2]
[330366243,1719336635138,-669.99,0.00019178,2]
[330366244,1719336635149,-500.0,0.00019178,2]
[330366245,1719336635160,-507.74,0.00019178,2]
[330366246,1719336635170,-517.13,0.00019178,2]
[330366247,1719336635180,-500.0,0.00019178,2]
[330366248,1719336635190,-507.18,0.00019178,2]
[330366249,1719336635200,-500.0,0.00019178,2]
[330366250,1719336635210,-500.0,0.00019178,2]
[330366251,1719336635220,-500.0,0.00019178,2]
[330366252,1719336635230,-2616.56,0.00019178,2]
[330366253,1719336635241,-500.0,0.00019178,2]
[330366254,1719336635251,-500.0,0.00019178,2]
[330366255,1719336635260,-500.0,0.00019178,2]
[330366256,1719336635271,-500.0,0.00019178,2]
[330366257,1719336635281,-500.0,0.00019178,2]
[330366258,1719336635291,-614.03,0.00019178,2]
[330366259,1719336635301,-812.85,0.00019178,2]
[330366260,1719336635312,-2022.81,0.00019178,2]
[330366261,1719336635322,-500.0,0.00019178,2]
[330366262,1719336635332,-500.0,0.00019178,2]
[330366263,1719336635342,-500.0,0.00019178,2]
[330366264,1719336635352,-500.0,0.00019178,2]
[330366265,1719336635363,-1552.86,0.00019178,2]
[330366266,1719336635373,-500.0,0.00019178,2]
[330366267,1719336635383,-500.0,0.00019178,2]
[330366268,1719336635392,-500.0,0.00019178,2]
[330366269,1719336635405,-500.0,0.00019178,2]
[330366270,1719336635415,-500.0,0.00019178,2]
[330366271,1719336635424,-500.0,0.00019178,2]
[330366272,1719336635434,-500.0,0.00019178,2]
[330366273,1719336635444,-500.0,0.00019178,2]
[330366274,1719336635454,-500.0,0.00019178,2]
[330366275,1719336635463,-500.0,0.00019178,2]
[330366276,1719336635473,-500.0,0.00019178,2]
[330366277,1719336635484,-693.31,0.00019178,2]
[330366278,1719336635493,-500.0,0.00019178,2]
[330366279,1719336635504,-500.0,0.00019178,2]
[330366280,1719336635514,-500.0,0.00019178,2]
[330366281,1719336635524,-526.57,0.00019178,2]
[330366282,1719336635534,-500.0,0.00019178,2]
[330366283,1719336635544,-500.0,0.00019178,2]
[330366284,1719336635555,-500.0,0.00019178,2]
[330366285,1719336635565,-500.0,0.00019178,2]
[330366286,1719336635576,-500.0,0.00019178,2]
[330366287,1719336635586,-500.0,0.00019178,2]
[330366288,1719336635596,-500.0,0.00019178,2]
[330366289,1719336635606,-1824.19,0.00019178,2]
[330366290,1719336635617,-500.0,0.00019178,2]
[330366291,1719336635627,-500.0,0.00019178,2]
[330366292,1719336635637,-500.0,0.00019178,2]
[330366293,1719336635648,-440.55708334,0.00019178,2]
[330366294,1719336635658,-500.0,0.00019178,2]
[330366295,1719336635668,-1583.54,0.00019178,2]
[330366296,1719336635678,-500.0,0.00019178,2]
[330366297,1719336635688,-500.0,0.00019178,2]
[330366298,1719336635701,-500.0,0.00019178,2]
[330366299,1719336635713,-1366.12,0.00019178,2]
[330366300,1719336635723,-675.71,0.00019178,2]
[330366301,1719336635733,-500.0,0.00019178,2]
[330366302,1719336635745,-801.51,0.00019178,2]
[330366303,1719336635755,-500.0,0.00019178,2]
[330366304,1719336635766,-500.0,0.00019178,2]
[330366305,1719336635776,-500.0,0.00019178,2]
[330366306,1719336635787,-500.0,0.00019178,2]
[330366307,1719336635798,-933.11,0.00019178,2]
[330366308,1719336635808,-500.0,0.00019178,2]
[330366309,1719336635818,-500.0,0.00019178,2]
[330366310,1719336635827,-512.72,0.00019178,2]
[330366311,1719336635838,-500.0,0.00019178,2]
[330366312,1719336635848,-2499.73,0.00019178,2]
[330366313,1719336635858,-500.0,0.00019178,2]
[330366314,1719336635868,-500.0,0.00019178,2]
[330366315,1719336635879,-867.21,0.00019178,2]
[330366316,1719336635890,-500.0,0.00019178,2]
[330366317,1719336635901,-500.0,0.00019178,2]
[330366318,1719336635911,-500.0,0.00019178,2]
[330366319,1719336635921,-594.29,0.00019178,2]
[330366320,1719336635931,-579.85736979,0.00019178,2]
[330366321,1719336635942,-500.0,0.00019178,2]
[330366322,1719336635952,-500.0,0.00019178,2]
[330366323,1719336635962,-1840.99,0.00019178,2]
[330366324,1719336635972,-500.0,0.00019178,2]
[330366325,1719336635982,-500.0,0.00019178,2]
[330366326,1719336635992,-500.0,0.00019178,2]
[330366327,1719336636003,-500.0,0.00019178,2]
[330366328,1719336636012,-500.0,0.00019178,2]
[330366329,1719336636022,-500.0,0.00019178,2]
[330366330,1719336636034,-500.0,0.00019178,2]
[330366331,1719336636044,-500.0,0.00019178,2]
[330366332,1719336636054,-500.0,0.00019178,2]
[330366333,1719336636064,-675.0,0.00019178,2]
[330366334,1719336636074,-501.96591156,0.00019178,2]
[330366335,1719336636084,-500.0,0.00019178,2]
[330366336,1719336636093,-500.0,0.00019178,2]
[330366337,1719336636103,-1707.87,0.00019178,2]
[330366338,1719336636113,-500.0,0.00019178,2]
[330366339,1719336636123,-947.45,0.00019178,2]
[330366340,1719336636133,-500.0,0.00019178,2]
[330366341,1719336636143,-500.0,0.00019178,2]
[330366342,1719336636154,-500.0,0.00019178,2]
[330366343,1719336636164,-500.0,0.00019178,2]
[330366344,1719336636174,-2050.36,0.00019178,2]
[330366345,1719336636183,-914.64,0.00019178,2]
[330366346,1719336636193,-500.0,0.00019178,2]
[330366347,1719336636203,-500.0,0.00019178,2]
[330366348,1719336636213,-500.0,0.00019178,2]
[330366349,1719336636223,-500.0,0.00019178,2]
[330366350,1719336636232,-733.97,0.00019178,2]
[330366351,1719336636242,-500.0,0.00019178,2]
[330366352,1719336636253,-500.0,0.00019178,2]
[330366353,1719336636263,-309.15411822,0.00019178,2]
[330366354,1719336636272,-500.0,0.00019178,2]
[330366355,1719336636282,-500.0,0.00019178,2]
[330366356,1719336636291,-500.0,0.00019178,2]
[330366357,1719336636300,-889.8,0.00019178,2]
[330366358,1719336636309,-500.0,0.00019178,2]
[330366359,1719336636318,-500.0,0.00019178,2]
[330366360,1719336636328,-500.0,0.00019178,2]
[330366361,1719336636337,-500.0,0.00019178,2]
[330366362,1719336636520,-691.57,0.00019178,2]
[330366363,1719336636530,-500.0,0.00019178,2]
[330366364,1719336636540,-500.0,0.00019178,2]
[330366365,1719336636549,-500.0,0.00019178,2]
[330366366,1719336636558,-1184.53,0.00019178,2]
[330366367,1719336636567,-500.0,0.00019178,2]
[330366368,1719336636576,-824.52,0.00019178,2]
[330366369,1719336636585,-1069.58,0.00019178,2]
[330366370,1719336636594,-500.0,0.00019178,2]
[330366371,1719336636603,-500.0,0.00019178,2]
[330366372,1719336636612,-500.0,0.00019178,2]
[330366373,1719336636621,-562.55,0.00019178,2]
[330366374,1719336636630,-500.0,0.00019178,2]
[330366375,1719336636639,-500.0,0.00019178,2]
[330366376,1719336636649,-1027.51,0.00019178,2]
[330366377,1719336636658,-500.0,0.00019178,2]
[330366378,1719336636667,-500.0,0.00019178,2]
[330366379,1719336636677,-537.74,0.00019178,2]
[330366380,1719336636686,-500.0,0.00019178,2]
[330366381,1719336636696,-500.0,0.00019178,2]
[330366382,1719336636710,-500.0,0.00019178,2]
[330366383,1719336636719,-500.0,0.00019178,2]
[330366384,1719336636728,-500.0,0.00019178,2]
[330366385,1719336636738,-500.0,0.00019178,2]
[330366386,1719336636747,-500.0,0.00019178,2]